bitfinex-derivatives/quotes_SOLF0:USTF0_20241107
["timestamp","ask_amount","ask_price","bid_price","bid_amount"]
[1730961544749,2.6699,187.15,187.1,6.57081403]
[1730961544948,2.6699,187.15,187.09,2.5129]
[1730961545150,2.6699,187.15,187.09,9.08371403]
[1730961545350,2.6699,187.15,187.1,2.6704]
[1730961553865,10.26195928,187.19,187.09,2.5129]
[1730961554066,2.6701,187.14,187.09,2.5129]
[1730961555666,2.84,187.16,186.96,5.3447]
[1730961555968,10.26195928,187.11,186.99,10.26195928]
[1730961556268,13.10195928,187.11,187.0,2.6719]
[1730961556562,13.10195928,187.11,186.99,10.26195928]
[1730961556961,2.6712,187.06,186.99,12.93395928]
[1730961557459,2.6712,187.06,186.99,10.26195928]
[1730961557964,2.6712,187.06,186.99,12.93395928]
[1730961558867,2.6712,187.06,186.99,10.26195928]
[1730961560066,2.6712,187.06,186.99,12.93405928]
[1730961560461,2.6712,187.06,186.99,10.26195928]
[1730961560767,2.6712,187.06,187.0,2.6719]
[1730961561868,13.10195928,187.11,186.99,10.26195928]
[1730961562064,10.26195928,187.08,186.98,3.7858]
[1730961562258,10.26195928,187.08,186.98,2.4632]
[1730961562460,2.6719,187.01,186.98,2.4632]
[1730961563360,2.6717,187.01,186.96,2.6723]
[1730961564976,2.84,187.04,186.93,10.26195928]
[1730961565166,2.6719,187.0,186.95,2.6725]
[1730961565872,2.6719,187.0,186.96,10.26195928]
[1730961567370,2.6719,187.0,186.99,6.57678823]
[1730961570469,2.672,186.99,186.95,2.6725]
[1730961570672,2.84,186.98,186.93,6.57678823]
[1730961570872,2.84,186.98,186.9,2.471]
[1730961570873,2.84,186.97,186.9,2.471]
[1730961571068,2.84,186.97,186.93,6.57678823]
[1730961571274,2.6727,186.94,186.9,1.2066]
[1730961571575,6.57678823,186.92,186.68,5.3527]
[1730961571772,2.6736,186.88,186.81,2.6744]
[1730961571970,2.6736,186.88,186.85,6.57678823]
[1730961572678,2.6736,186.88,186.86,6.57678823]
[1730961572877,5.5131,186.91,186.86,6.57678823]
[1730961573081,5.5131,186.91,186.89,6.57678823]
[1730961573278,5.5131,186.91,186.86,10.27678052]
[1730961573471,2.84,186.91,186.86,10.27678052]
[1730961573670,2.6734,186.9,186.86,10.27678052]
[1730961573884,2.84,186.91,186.84,10.27678052]
[1730961574070,2.84,186.91,186.83,10.27678052]
[1730961574679,2.84,186.91,186.8,10.27678052]
[1730961575082,2.6738,186.87,186.81,2.6744]
[1730961575384,2.84,186.86,186.77,3.7823]
[1730961575880,2.6741,186.84,186.78,10.27678052]
[1730961576280,2.6741,186.84,186.77,2.5148]
[1730961576481,2.674,186.86,186.78,10.27678052]
[1730961576675,2.84,186.86,186.78,10.27678052]
[1730961577273,2.6741,186.85,186.8,2.6746]
[1730961577473,2.84,186.86,186.8,2.6746]
[1730961577883,5.5137,186.87,186.81,2.6745]
[1730961578081,2.84,186.87,186.78,10.27678052]
[1730961578678,2.84,186.87,186.77,2.5148]
[1730961578879,2.84,186.87,186.78,10.27678052]
[1730961579175,2.84,186.87,186.77,2.5148]
[1730961580488,2.84,186.87,186.77,12.79158052]
[1730961581374,10.27678052,186.92,186.77,12.79158052]
[1730961581580,2.84,186.88,186.77,12.79158052]
[1730961581780,2.6735,186.89,186.81,2.6745]
[1730961582090,2.84,186.88,186.81,2.6745]
[1730961583682,10.27678052,186.92,186.8,10.27678052]
[1730961583884,2.84,186.91,186.8,10.27678052]
[1730961584591,2.6737,186.88,186.82,2.6744]
[1730961584784,2.84,186.91,186.8,10.27678052]
[1730961585194,2.6738,186.86,186.8,12.95138052]
[1730961585396,2.6738,186.86,186.8,2.6746]
[1730961590694,10.27678052,186.89,186.8,2.6746]
[1730961590998,2.674,186.85,186.8,2.6746]
[1730961593388,2.674,186.85,186.82,6.58089617]
[1730961596204,2.6741,186.84,186.8,9.25549617]
[1730961596904,2.6741,186.84,186.8,6.58089617]
[1730961600012,9.42089617,186.86,186.8,6.58089617]
[1730961600303,2.6743,186.83,186.8,6.58089617]
[1730961600605,2.6743,186.83,186.77,2.5148]
[1730961600606,2.84,186.86,186.81,6.58089617]
[1730961600998,9.42089617,186.86,186.81,6.58089617]
[1730961601400,2.6742,186.84,186.81,6.58089617]
[1730961601800,2.68564444,186.94,186.81,9.25539617]
[1730961602105,6.58089617,186.88,186.81,9.25539617]
[1730961602296,6.58089617,186.86,186.81,9.25539617]
[1730961602496,9.25489617,186.86,186.81,9.25539617]
[1730961603210,6.58089617,186.85,186.77,2.5148]
[1730961603408,2.84,186.88,186.73,1.3049]
[1730961603409,6.58089617,186.8,186.73,1.3049]
[1730961603708,2.6751,186.78,186.74,6.58089617]
[1730961604112,9.42089617,186.81,186.76,6.58089617]
[1730961605104,2.66770981,186.9,186.77,6.58089617]
[1730961605105,9.42089617,186.83,186.77,6.58089617]
[1730961605306,6.58089617,186.83,186.77,6.58089617]
[1730961605613,9.42089617,186.85,186.79,6.58089617]
[1730961605808,9.42089617,186.85,186.71,2.84]
[1730961605809,6.58089617,186.8,186.62,2.47472293]
[1730961606111,6.58089617,186.8,186.61,26.20451599]
[1730961606112,2.675,186.78,186.74,9.25629617]
[1730961606616,2.675,186.78,186.74,2.6754]
[1730961606909,2.675,186.78,186.74,9.25629617]
[1730961607107,6.58089617,186.8,186.75,2.6754]
[1730961607711,2.84,186.85,186.75,2.6754]
[1730961607909,6.58089617,186.82,186.76,6.58089617]
[1730961608106,2.6747,186.8,186.76,6.58089617]
[1730961608312,6.58089617,186.82,186.76,9.25609617]
[1730961608504,6.58089617,186.82,186.76,2.6752]
[1730961608709,2.84,186.83,186.77,6.58089617]
[1730961609012,9.42089617,186.83,186.77,9.25589617]
[1730961609405,2.6745,186.82,186.77,9.25589617]
[1730961610013,9.42089617,186.83,186.77,9.25589617]
[1730961610209,2.6746,186.81,186.77,9.25589617]
[1730961611211,2.6747,186.8,186.76,2.6753]
[1730961611405,2.6747,186.8,186.75,6.58089617]
[1730961612310,2.6749,186.79,186.75,6.58089617]
[1730961612505,6.58089617,186.8,186.74,6.58089617]
[1730961612908,2.675,186.78,186.74,6.58089617]
[1730961613214,2.675,186.78,186.74,9.25629617]
[1730961615005,2.675,186.78,186.74,6.58089617]
[1730961617220,6.58089617,186.78,186.72,6.58089617]
[1730961617413,5.45421095,186.83,186.72,6.58089617]
[1730961617609,6.58089617,186.79,186.72,6.58089617]
[1730961618123,2.6751,186.77,186.72,9.25659617]
[1730961619223,6.58089617,186.75,186.6,60.14876995]
[1730961619514,6.58089617,186.75,186.69,6.58089617]
[1730961619715,6.58089617,186.75,186.69,2.6762]
[1730961619921,6.58089617,186.75,186.69,9.25709617]
[1730961620714,2.6755,186.74,186.69,9.25709617]
[1730961621517,2.6755,186.74,186.69,2.6762]
[1730961621719,2.6755,186.74,186.69,9.25709617]
[1730961621720,9.25639617,186.74,186.69,9.25709617]
[1730961621917,6.58089617,186.74,186.69,9.25709617]
[1730961622133,2.6753,186.75,186.7,6.58089617]
[1730961622612,2.6753,186.75,186.7,9.16629617]
[1730961624220,6.58089617,186.74,186.7,2.5854]
[1730961624413,2.6757,186.73,186.67,9.25729617]
[1730961625014,2.6757,186.73,186.68,2.6763]
[1730961625215,2.6755,186.74,186.69,6.58089617]
[1730961625822,6.58089617,186.75,186.69,6.58089617]
[1730961625823,2.6757,186.73,186.69,6.58089617]
[1730961627114,2.6755,186.74,186.69,9.25709617]
[1730961627314,6.58089617,186.75,186.69,6.58089617]
[1730961628313,9.25619617,186.75,186.62,2.84]
[1730961628523,9.25619617,186.75,186.69,6.58089617]
[1730961628724,2.6753,186.75,186.69,6.58089617]
[1730961628931,6.58089617,186.74,186.7,2.4554]
[1730961629729,6.58089617,186.74,186.7,5.1314]
[1730961633924,2.6753,186.75,186.7,2.4554]
[1730961634125,6.58089617,186.73,186.7,2.4554]
[1730961635517,9.25639617,186.74,186.7,2.4554]
[1730961635928,6.53378988,186.82,186.7,9.03629617]
[1730961636123,2.6754,186.75,186.7,9.03629617]
[1730961637124,2.6754,186.75,186.7,11.71219617]
[1730961637321,9.42089617,186.76,186.7,11.71219617]
[1730961637322,6.58089617,186.76,186.7,11.71219617]
[1730961637519,9.25609617,186.76,186.7,11.71219617]
[1730961637718,6.58089617,186.76,186.7,11.71219617]
[1730961638125,2.6753,186.75,186.7,11.71219617]
[1730961638632,6.58089617,186.76,186.7,11.71219617]
[1730961638926,2.6755,186.74,186.7,11.71219617]
[1730961639820,2.6752,186.76,186.7,11.71219617]
[1730961640129,6.58089617,186.76,186.7,5.1313]
[1730961640330,6.58089617,186.76,186.7,11.71219617]
[1730961640530,2.6753,186.75,186.7,11.71219617]
[1730961640728,6.58089617,186.76,186.7,11.71219617]
[1730961641224,2.6753,186.76,186.7,11.71219617]
[1730961641426,9.25619617,186.76,186.7,11.71219617]
[1730961642427,2.6751,186.77,186.71,2.6758]
[1730961642721,9.25599617,186.77,186.71,2.6758]
[1730961643126,9.25599617,186.77,186.72,2.6757]
[1730961643319,6.58089617,186.79,186.72,6.58089617]
[1730961644326,6.58089617,186.77,186.7,2.4554]
[1730961644628,6.58089617,186.77,186.7,9.03629617]
[1730961645835,6.58089617,186.76,186.7,9.03629617]
[1730961646021,6.58089617,186.76,186.72,6.58089617]
[1730961646225,9.25579617,186.78,186.74,2.6754]
[1730961646919,6.54504323,186.87,186.75,6.58089617]
[1730961647127,6.58089617,186.81,186.75,9.25609617]
[1730961647730,2.6746,186.81,186.75,6.58089617]
[1730961647936,6.58089617,186.79,186.76,2.6751]
[1730961648230,6.58089617,186.79,186.72,2.84]
[1730961648429,9.25569617,186.79,186.74,2.6754]
[1730961649424,6.58089617,186.77,186.72,6.58089617]
[1730961650226,6.58089617,186.77,186.7,2.4554]
[1730961650535,6.58089617,186.77,186.7,9.03629617]
[1730961650827,2.6753,186.75,186.71,2.6759]
[1730961651431,9.25619617,186.75,186.67,2.84]
[1730961651625,9.25619617,186.75,186.7,6.58089617]
[1730961652727,9.25619617,186.75,186.7,9.25689617]
[1730961653234,6.58089617,186.75,186.7,6.58089617]
[1730961653828,2.6755,186.74,186.7,9.25689617]
[1730961654226,2.6753,186.76,186.71,2.6759]
[1730961654426,6.58089617,186.74,186.71,2.6759]
[1730961658835,9.25619617,186.76,186.71,2.6759]
[1730961659637,6.58089617,186.76,186.71,2.6759]
[1730961659838,6.58089617,186.76,186.72,2.6756]
[1730961660032,6.58089617,186.78,186.72,2.6756]
[1730961660538,6.54504323,186.83,186.73,6.58089617]
[1730961660725,6.58089617,186.79,186.73,6.58089617]
[1730961661341,6.58089617,186.79,186.74,2.6753]
[1730961661542,6.58089617,186.79,186.73,6.58089617]
[1730961661842,6.58089617,186.79,186.72,2.84]
[1730961662134,6.58089617,186.77,186.72,2.6756]
[1730961662439,6.58089617,186.77,186.7,6.58089617]
[1730961662639,6.58089617,186.77,186.71,2.6759]
[1730961662640,2.6752,186.76,186.71,2.6759]
[1730961664339,9.25619617,186.75,186.7,9.25689617]
[1730961666634,6.58089617,186.73,186.7,2.676]
[1730961667135,9.25619617,186.75,186.7,9.25689617]
[1730961667628,2.6753,186.75,186.7,9.25689617]
[1730961668030,9.25619617,186.75,186.7,9.25689617]
[1730961668238,2.84,186.82,186.7,6.58089617]
[1730961668447,6.58089617,186.77,186.72,9.25649617]
[1730961668936,6.58089617,186.77,186.71,11.75639617]
[1730961669145,6.58089617,186.76,186.71,11.75639617]
[1730961669649,2.6752,186.76,186.71,11.75639617]
[1730961669849,9.25609617,186.76,186.71,11.75639617]
[1730961670040,6.58089617,186.76,186.71,2.4996]
[1730961670342,2.6753,186.75,186.71,2.4996]
[1730961672239,6.58089617,186.76,186.71,2.4996]
[1730961672539,9.25609617,186.76,186.71,2.4996]
[1730961672742,9.25609617,186.76,186.71,5.1754]
[1730961678251,9.25609617,186.76,186.71,2.6758]
[1730961678457,6.58089617,186.72,186.65,9.42089617]
[1730961678648,6.58089617,186.71,186.65,9.42089617]
[1730961678955,6.58089617,186.71,186.65,6.58089617]
[1730961679357,6.58089617,186.69,186.63,9.06449617]
[1730961679662,6.58089617,186.69,186.53,5.3569]
[1730961679663,2.6767,186.66,186.58,2.6776]
[1730961679847,2.6767,186.66,186.57,1.2232]
[1730961680043,2.6767,186.66,186.58,6.58089617]
[1730961680044,6.58089617,186.64,186.58,6.58089617]
[1730961680252,6.58089617,186.64,186.57,1.2232]
[1730961680253,6.58089617,186.62,186.57,1.2232]
[1730961680450,2.6769,186.64,186.57,1.2232]
[1730961680651,6.58089617,186.63,186.57,7.80409617]
[1730961681048,2.6772,186.62,186.57,1.2232]
[1730961681246,2.84,186.65,186.57,1.2232]
[1730961681455,6.58089617,186.64,186.59,6.58089617]
[1730961681761,9.25779617,186.64,186.58,9.25859617]
[1730961682060,13.3095774,186.67,186.63,6.58089617]
[1730961682264,6.58089617,186.69,186.63,6.58089617]
[1730961683158,2.84,186.72,186.59,1.2161]
[1730961683358,5.5158,186.72,186.64,6.58089617]
[1730961683659,6.58089617,186.71,186.64,6.58089617]
[1730961683960,6.58089617,186.71,186.66,9.25749617]
[1730961684166,2.84,186.75,186.67,6.58089617]
[1730961684353,6.58089617,186.74,186.67,6.58089617]
[1730961684957,9.38504323,186.77,186.64,2.4964]
[1730961685266,6.58089617,186.72,186.66,6.58089617]
[1730961685464,6.58089617,186.72,186.64,2.4964]
[1730961685655,9.25669617,186.72,186.66,6.58089617]
[1730961686160,9.25669617,186.72,186.64,2.4964]
[1730961686161,6.58089617,186.68,186.64,2.4964]
[1730961686857,6.58089617,186.68,186.64,5.1732]
[1730961687260,2.6763,186.69,186.64,5.1732]
[1730961687565,2.6761,186.7,186.64,5.1732]
[1730961688360,23.60081126,186.71,186.64,2.4964]
[1730961688559,2.6764,186.68,186.64,2.4964]
[1730961688762,13.3095774,186.7,186.6,2.84]
[1730961688956,2.6766,186.67,186.6,5.5174]
[1730961689356,10.29123386,186.69,186.6,5.5174]
[1730961689566,2.6766,186.66,186.6,5.5174]
[1730961690461,2.6766,186.66,186.6,2.6774]
[1730961691367,16.01,186.78,186.59,1.2161]
[1730961691368,17.08173815,186.71,186.59,1.2161]
[1730961691562,13.13123386,186.71,186.59,1.2161]
[1730961691757,13.13123386,186.71,186.59,11.50733386]
[1730961692162,10.29123386,186.68,186.59,1.2161]
[1730961692761,2.6766,186.66,186.59,3.8936]
[1730961693270,2.6766,186.66,186.6,2.6775]
[1730961693565,2.6768,186.65,186.59,1.2161]
[1730961694069,10.29123386,186.68,186.59,1.2161]
[1730961694070,2.6766,186.67,186.59,1.2161]
[1730961694264,10.29123386,186.68,186.59,1.2161]
[1730961694655,2.6765,186.67,186.61,2.6773]
[1730961694868,10.29123386,186.68,186.61,2.6773]
[1730961695060,10.29123386,186.68,186.59,1.2161]
[1730961695465,2.6765,186.67,186.62,2.6771]
[1730961695669,2.6765,186.67,186.59,1.2161]
[1730961695968,10.29123386,186.68,186.59,1.2161]
[1730961696264,2.6767,186.66,186.59,1.2161]
[1730961696465,10.29123386,186.68,186.56,2.84]
[1730961697070,2.6769,186.65,186.59,2.6775]
[1730961697266,10.29123386,186.68,186.59,2.6775]
[1730961697767,2.6766,186.66,186.59,2.6775]
[1730961698173,10.29123386,186.68,186.56,13.13123386]
[1730961698359,10.29123386,186.68,186.6,2.6774]
[1730961698559,10.29123386,186.73,186.61,13.13123386]
[1730961698761,10.29123386,186.73,186.62,3.7585]
[1730961698970,24.52232884,186.73,186.62,3.7585]
[1730961699171,2.6762,186.69,186.64,2.6768]
[1730961699368,17.78319926,186.71,186.62,3.7585]
[1730961699581,10.29123386,186.71,186.62,2.5458]
[1730961699785,10.29123386,186.67,186.58,2.84]
[1730961700390,2.6769,186.64,186.58,5.5177]
[1730961702487,2.6769,186.64,186.58,2.6777]
[1730961703178,2.6769,186.64,186.54,15.59173386]
[1730961703384,2.6769,186.64,186.59,2.6776]
[1730961704885,2.6769,186.64,186.55,10.29123386]
[1730961705086,2.6769,186.64,186.58,2.6776]
[1730961705887,10.29123386,186.65,186.55,10.29123386]
[1730961706092,10.29123386,186.65,186.54,5.3005]
[1730961707189,10.29123386,186.65,186.54,2.4605]
[1730961708184,2.6774,186.61,186.55,2.6781]
[1730961708599,13.35123386,186.63,186.51,10.29123386]
[1730961708893,2.62394507,186.68,186.5,3.06]
[1730961708894,13.35123386,186.68,186.5,3.06]
[1730961709084,16.04433567,186.68,186.56,10.29123386]
[1730961709285,16.04433567,186.68,186.57,2.5407]
[1730961709483,20.83822258,186.68,186.55,3.06]
[1730961709680,13.35123386,186.68,186.55,13.35123386]
[1730961709880,2.6769,186.64,186.58,2.6777]
[1730961712282,20.83980102,186.68,186.56,1.2306]
[1730961712496,2.6772,186.63,186.57,2.6779]
[1730961712683,3.06,186.63,186.37,16.05]
[1730961712889,2.6777,186.59,186.52,2.6785]
[1730961713588,13.35123386,186.63,186.52,2.6785]
[1730961713794,2.6778,186.58,186.52,2.6785]
[1730961713990,10.29123386,186.63,186.53,2.6784]
[1730961714192,2.6773,186.61,186.52,10.29123386]
[1730961714388,3.06,186.62,186.52,10.29123386]
[1730961714694,5.7372,186.62,186.56,2.678]
[1730961714893,3.06,186.62,186.51,1.2798]
[1730961715097,3.06,186.62,186.52,2.6785]
[1730961715293,10.29123386,186.63,186.51,1.2798]
[1730961715494,10.29123386,186.65,186.52,13.35123386]
[1730961715891,10.29123386,186.65,186.56,2.6779]
[1730961716396,2.677,186.63,186.56,2.6779]
[1730961716590,10.29123386,186.65,186.56,2.6779]
[1730961717392,2.6769,186.64,186.54,10.29123386]
[1730961717585,2.6769,186.64,186.57,2.6778]
[1730961719591,2.6769,186.64,186.58,2.6777]
[1730961720293,13.35123386,186.68,186.57,10.29123386]
[1730961720500,3.06,186.71,186.6,10.29123386]
[1730961721087,10.29123386,186.72,186.58,6.881]
[1730961721294,10.29123386,186.72,186.61,10.29123386]
[1730961721998,2.6762,186.69,186.61,10.29123386]
[1730961723098,2.6762,186.69,186.64,2.6769]
[1730961723298,10.29123386,186.72,186.64,2.6769]
[1730961723504,2.6761,186.7,186.64,2.6769]
[1730961724099,2.6761,186.7,186.65,2.6767]
[1730961725704,2.6761,186.7,186.61,10.29123386]
[1730961726104,2.6761,186.7,186.63,2.6769]
[1730961726306,2.6761,186.7,186.61,10.29123386]
[1730961726904,2.6759,186.71,186.64,2.6768]
[1730961727800,2.6762,186.7,186.64,2.6769]
[1730961728910,10.29123386,186.72,186.61,10.29123386]
[1730961729104,2.6763,186.69,186.62,2.6771]
[1730961729403,2.6763,186.69,186.6,3.06]
[1730961729703,10.29123386,186.69,186.58,6.881]
[1730961730003,13.35123386,186.69,186.58,6.881]
[1730961730207,16.04347066,186.69,186.58,2.5868]
[1730961730398,10.29123386,186.66,186.51,1.3151]
[1730961730601,10.29123386,186.55,186.46,3.9491]
[1730961730801,10.29123386,186.54,186.46,1.2698]
[1730961731506,3.82,186.57,186.42,2.5715]
[1730961731808,2.6788,186.51,186.42,1.2564]
[1730961732001,12.97003386,186.51,186.42,1.2564]
[1730961732197,3.82,186.57,186.42,1.2564]
[1730961732398,10.29123386,186.52,186.42,1.2564]
[1730961732596,11.3099903,186.57,186.42,1.2564]
[1730961732795,10.29123386,186.52,186.42,1.2564]
[1730961733193,10.29123386,186.55,186.42,14.22763386]
[1730961733402,26.82668982,186.58,186.42,11.54763386]
[1730961733603,10.29123386,186.56,186.45,10.29123386]
[1730961734602,4.6,186.57,186.45,10.29123386]
[1730961735006,10.29123386,186.56,186.45,10.29123386]
[1730961735203,10.29123386,186.56,186.43,1.3301]
[1730961735204,2.6782,186.55,186.43,4.0099]
[1730961735399,4.6,186.57,186.43,4.0099]
[1730961735400,10.29123386,186.51,186.43,1.3301]
[1730961735596,10.29123386,186.48,186.4,1.2743]
[1730961736004,10.29123386,186.45,186.34,3.38287247]
[1730961736211,10.29123386,186.48,186.36,11.60863386]
[1730961736510,15.15123386,186.5,186.38,10.29123386]
[1730961736710,15.15123386,186.5,186.36,1.3174]
[1730961736909,15.15123386,186.5,186.38,2.6805]
[1730961737111,15.15123386,186.5,186.37,10.29123386]
[1730961737310,4.86,186.5,186.37,16.48512906]
[1730961737605,4.86,186.5,186.39,2.6804]
[1730961737808,4.86,186.5,186.37,16.48512906]
[1730961738798,16.48512906,186.53,186.37,16.48512906]
[1730961739004,16.48512906,186.53,186.42,2.68]
[1730961739206,4.86,186.54,186.4,16.48512906]
[1730961739604,4.86,186.54,186.36,1.3174]
[1730961739804,4.86,186.54,186.39,16.48512906]
[1730961740205,4.86,186.54,186.4,1.2737]
[1730961741216,4.86,186.54,186.36,1.3174]
[1730961741217,16.48512906,186.51,186.36,1.3174]
[1730961741714,2.6795,186.46,186.36,3.9983]
[1730961742106,2.6795,186.46,186.36,1.3174]
[1730961742505,5.12,186.47,186.36,1.3174]
[1730961742705,2.6798,186.44,186.36,1.3174]
[1730961742909,5.12,186.47,186.36,1.3174]
[1730961743814,2.6796,186.46,186.36,3.9983]
[1730961744020,5.12,186.47,186.36,1.3174]
[1730961744525,2.6798,186.44,186.32,16.48512906]
[1730961744709,5.12,186.47,186.33,2.5256]
[1730961745202,5.12,186.47,186.35,2.6809]
[1730961745611,5.12,186.47,186.33,2.5256]
[1730961745809,2.6797,186.45,186.36,2.6808]
[1730961746112,5.12,186.54,186.37,16.48512906]
[1730961746320,5.12,186.54,186.41,16.48512906]
[1730961746809,2.6787,186.52,186.43,2.6798]
[1730961747810,2.6792,186.48,186.39,2.6804]
[1730961748018,5.12,186.54,186.36,16.48512906]
[1730961748805,2.679,186.5,186.41,2.6802]
[1730961749109,5.12,186.54,186.38,16.48512906]
[1730961749312,2.6786,186.53,186.43,2.6798]
[1730961749620,5.12,186.54,186.43,2.6798]
[1730961749804,2.6788,186.52,186.43,2.6798]
[1730961750003,5.12,186.54,186.38,16.48512906]
[1730961750408,2.6785,186.53,186.38,16.48512906]
[1730961750708,16.48512906,186.57,186.41,16.48512906]
[1730961750709,21.60512906,186.57,186.41,16.48512906]
[1730961750911,19.16312906,186.57,186.42,3.7659]
[1730961751123,16.48512906,186.57,186.42,3.7659]
[1730961751414,16.48512906,186.57,186.42,20.25102906]
[1730961751714,2.6784,186.54,186.42,20.25102906]
[1730961752014,26.82668982,186.58,186.42,20.25102906]
[1730961752015,43.31181888,186.58,186.42,20.25102906]
[1730961752210,2.6782,186.55,186.48,2.6791]
[1730961752812,2.6784,186.54,186.42,20.25102906]
[1730961753014,16.48512906,186.55,186.42,3.7659]
[1730961753409,2.6788,186.52,186.44,2.6798]
[1730961753606,16.48512906,186.55,186.42,3.7659]
[1730961754007,2.6789,186.5,186.42,6.4459]
[1730961754208,2.6789,186.5,186.42,3.7659]
[1730961754422,5.12,186.53,186.42,6.4459]
[1730961755306,2.6792,186.48,186.42,5.2137]
[1730961755509,16.48512906,186.52,186.37,1.3187]
[1730961755719,16.48512906,186.48,186.37,1.3187]
[1730961755914,2.6794,186.47,186.37,3.7664]
[1730961756115,2.6794,186.47,186.4,2.6803]
[1730961756723,16.48512906,186.48,186.37,3.7664]
[1730961756919,19.16432906,186.48,186.37,3.7664]
[1730961757823,16.48512906,186.45,186.28,16.48512906]
[1730961758011,5.12,186.44,186.33,2.4376]
[1730961758408,2.6799,186.43,186.33,2.4376]
[1730961758919,5.12,186.42,186.34,2.6811]
[1730961759118,16.48512906,186.45,186.33,2.4376]
[1730961759423,5.12,186.44,186.33,2.4376]
[1730961759719,2.6799,186.43,186.36,2.6809]
[1730961760626,2.6805,186.39,186.33,2.4376]
[1730961760819,5.356,186.81,186.3,16.48512906]
[1730961761028,19.18662619,186.95,186.32,2.4793]
[1730961761029,16.48512906,186.48,186.32,2.4793]
[1730961761423,2.6801,186.42,186.35,2.681]
[1730961761715,10.29997036,186.45,186.35,2.681]
[1730961761922,5.12,186.45,186.34,10.29997036]
[1730961762125,10.29997036,186.48,186.34,10.29997036]
[1730961762317,10.29997036,186.48,186.32,2.4793]
[1730961762318,10.29997036,186.48,186.36,10.29997036]
[1730961762524,2.6796,186.45,186.38,2.6806]
[1730961762727,10.29997036,186.48,186.36,10.29997036]
[1730961763435,5.12,186.5,186.35,16.4724628]
[1730961763834,2.6793,186.47,186.38,2.6805]
[1730961764037,5.12,186.5,186.35,16.4724628]
[1730961764634,19.18662619,186.96,186.35,16.4724628]
[1730961764836,16.4724628,186.55,186.39,16.4724628]
[1730961765141,2.6789,186.5,186.4,3.6989]
[1730961765933,2.6791,186.49,186.42,2.68]
[1730961766142,16.4724628,186.52,186.4,3.6989]
[1730961767138,2.6797,186.45,186.4,3.6989]
[1730961767337,16.4724628,186.49,186.4,3.6989]
[1730961768330,16.4724628,186.49,186.11,2.46465232]
[1730961768331,16.4724628,186.46,186.28,5.12]
[1730961768536,16.4724628,186.46,186.29,1.3095]
[1730961768840,16.4724628,186.46,186.31,2.6815]
[1730961769142,16.4724628,186.46,186.29,1.3095]
[1730961769941,5.12,186.5,186.29,1.3095]
[1730961769942,16.4724628,186.43,186.29,1.3095]
[1730961770134,16.4724628,186.39,186.29,1.3095]
[1730961770333,2.6813,186.34,186.24,2.6825]
[1730961770538,16.4724628,186.39,186.18,1.3095]
[1730961770737,16.4724628,186.36,186.19,16.4724628]
[1730961771046,16.4724628,186.36,186.18,3.9178]
[1730961771047,16.4724628,186.36,186.24,2.6826]
[1730961771238,16.4724628,186.39,186.2,16.4724628]
[1730961771546,2.6808,186.37,186.24,2.6826]
[1730961771740,16.4724628,186.39,186.22,16.4724628]
[1730961772338,2.6809,186.36,186.27,2.6822]
[1730961772537,2.6809,186.36,186.28,2.5384]
[1730961772744,5.32,186.43,186.28,2.5384]
[1730961772938,5.32,186.43,186.29,1.2809]
[1730961773141,16.4724628,186.44,186.29,1.2809]
[1730961773342,16.4724628,186.44,185.97,2.46465232]
[1730961773534,16.4724628,186.41,186.29,1.2543]
[1730961773739,16.4724628,186.41,186.3,1.2653]
[1730961774333,2.6805,186.39,186.31,2.6816]
[1730961774734,2.6805,186.39,186.3,1.2653]
[1730961775550,2.6802,186.41,186.32,2.6815]
[1730961776052,2.6804,186.4,186.32,2.6815]
[1730961776548,16.4724628,186.44,186.3,1.2653]
[1730961776549,16.4724628,186.44,186.33,2.6813]
[1730961777141,16.4724628,186.44,186.34,2.6812]
[1730961777650,5.32,186.45,186.3,1.2653]
[1730961777849,16.4724628,186.43,186.3,1.2653]
[1730961778244,16.4724628,186.43,186.33,2.6812]
[1730961778441,16.4724628,186.43,186.3,1.2653]
[1730961778643,21.7924628,186.47,186.3,6.5853]
[1730961778839,16.4724628,186.47,186.31,16.4724628]